bitfinex/quotes_ETHUSD_20250106
["timestamp","ask_amount","ask_price","bid_price","bid_amount"]
[1736164325314,0.116,3651.1,3650.3,1.17453]
[1736164325515,0.116,3651.4,3650.5,0.808]
[1736164325716,0.116,3651.4,3651.1,2.73888]
[1736164326037,0.116,3651.4,3651.2,0.808]
[1736164328271,0.116,3651.4,3650.8,3.5087]
[1736164329270,0.116,3651.4,3650.9,3.50864]
[1736164330470,0.116,3651.5,3650.9,3.50864]
[1736164330644,0.116,3651.5,3651.0,2.73893]
[1736164331266,0.116,3651.5,3650.9,0.7696]
[1736164331433,0.116,3651.5,3651.2,2.73875]
[1736164331627,0.116,3651.5,3651.3,0.02738475]
[1736164331868,0.116,3651.5,3651.2,2.76613476]
[1736164332262,0.116,3651.5,3651.4,0.7715]
[1736164333168,0.116,3651.6,3651.4,0.7715]
[1736164333931,0.625,3651.7,3651.4,3.88856865]
[1736164335317,0.625,3651.7,3651.6,2.73852]
[1736164336778,0.625,3651.7,3651.6,3.49022]
[1736164338649,0.625,3651.7,3651.6,3.51759866]
[1736164340477,0.625,3652.5,3652.1,2.73812]
[1736164342002,0.625,3652.5,3652.4,2.73792]
[1736164342300,0.625,3652.5,3652.4,3.56902]
[1736164342462,0.625,3652.5,3652.4,38.56902]
[1736164343114,1.14700835,3653.9,3652.6,0.7807]
[1736164343315,1.14700835,3653.9,3653.4,0.7807]
[1736164343529,1.14700835,3653.9,3653.7,2.73692]
[1736164343692,1.14700835,3653.9,3653.8,35.0]
[1736164344039,6.29874371,3654.7,3653.8,35.0]
[1736164344040,3.0,3654.6,3653.8,35.0]
[1736164344715,2.85227,3654.7,3653.9,0.02736586]
[1736164344902,0.8356426,3654.6,3653.8,35.0]
[1736164345104,0.8356426,3654.6,3653.8,37.73686]
[1736164345339,0.8356426,3654.6,3653.8,35.0]
[1736164345648,0.116,3654.5,3653.8,37.73685]
[1736164346147,0.116,3654.5,3653.8,35.0]
[1736164346291,0.39516426,3654.4,3653.8,35.0]
[1736164347118,0.116,3654.3,3653.8,35.0]
[1736164347924,0.116,3654.3,3653.6,2.73701]
[1736164348526,0.116,3654.3,3653.7,35.0]
[1736164349835,0.116,3655.3,3654.0,0.7553]
[1736164350036,0.116,3655.4,3654.6,2.73624]
[1736164350237,0.116,3655.4,3654.7,0.02735806]
[1736164350470,2.73539,3655.8,3654.7,0.02735806]
[1736164350471,0.116,3655.5,3654.7,0.02735806]
[1736164350769,0.116,3655.5,3654.8,35.0]
[1736164352432,0.116,3655.4,3654.8,35.0]
[1736164352631,3.0,3655.7,3654.8,38.52277592]
[1736164352835,0.116,3655.6,3654.8,38.52277592]
[1736164353045,0.116,3655.6,3655.0,2.73597]
[1736164354081,3.0,3656.1,3654.8,35.8052]
[1736164354386,0.116,3655.7,3655.1,2.73584]
[1736164355672,0.116,3655.7,3654.9,2.73602]
[1736164357542,2.85146,3655.7,3654.8,35.0]
[1736164357748,3.58433951,3655.6,3654.8,35.0]
[1736164358218,3.0,3655.5,3654.8,35.0]
[1736164358823,5.73561,3655.5,3654.8,35.0]
[1736164359123,2.73568,3655.4,3654.8,35.0]
[1736164359284,3.0,3655.5,3654.8,35.0]
[1736164359616,3.29266815,3655.5,3654.8,35.0]
[1736164359997,0.116,3655.4,3654.8,35.0]
[1736164360388,0.116,3655.4,3654.8,37.73612]
[1736164361607,0.116,3655.4,3654.8,35.0]
[1736164364674,2.85168,3655.4,3654.8,35.0]
[1736164365284,3.0,3655.3,3654.8,35.0]
[1736164365481,3.0,3655.0,3654.0,3.5265]
[1736164365713,2.73602,3655.0,3654.0,3.5265]
[1736164365914,2.73602,3655.0,3654.1,35.0]
[1736164366590,3.0,3655.1,3654.2,2.73655]
[1736164366806,3.0,3655.1,3654.2,2.76391236]
[1736164367205,3.0,3655.1,3654.3,35.0]
[1736164367899,3.0,3655.3,3654.4,2.73641]
[1736164368091,3.0,3655.3,3654.5,0.7843]
[1736164368488,3.0,3655.3,3654.6,35.0]
[1736164369531,3.0,3655.1,3654.6,35.0]
[1736164369904,5.85169,3655.4,3654.6,35.0]
[1736164370105,6.97407351,3655.4,3654.6,35.0]
[1736164370833,2.73575,3655.3,3654.6,35.0]
[1736164372328,3.116,3655.4,3654.6,35.0]
[1736164372488,0.116,3655.3,3654.6,35.0]
[1736164373530,2.63663507,3656.2,3654.7,0.7755]
[1736164373729,0.116,3655.8,3654.9,2.73603]
[1736164374038,0.04912542,3655.7,3654.9,2.73603]
[1736164374200,0.04912542,3655.7,3655.0,35.0]
[1736164374807,2.78458542,3655.7,3655.0,35.0]
[1736164375017,2.73556,3655.6,3655.0,35.0]
[1736164375216,0.04902356,3655.5,3655.0,35.0]
[1736164375429,2.73548,3655.7,3655.1,0.7915]
[1736164375735,0.04907451,3655.6,3655.1,0.7915]
[1736164376523,2.78465451,3655.6,3655.0,35.0]
[1736164376845,2.73558,3655.6,3654.8,0.8157]
[1736164377054,0.04902358,3655.5,3654.8,0.8157]
[1736164377290,0.04902358,3655.5,3654.9,35.0]
[1736164378159,2.7356,3655.5,3654.9,35.0]
[1736164378454,0.0483103,3655.4,3654.9,35.0]
[1736164381252,0.116,3655.5,3654.9,35.0]
[1736164381466,0.04914143,3655.4,3654.9,35.0]
[1736164384617,0.04914143,3655.4,3654.2,2.73651]
[1736164384618,2.73583,3655.2,3654.2,2.73651]
[1736164384937,3.53951515,3655.4,3654.2,3.56051]
[1736164384938,2.7845099,3655.1,3654.2,3.56051]
[1736164385099,2.7845099,3655.1,3654.3,35.0]
[1736164386959,0.0485999,3655.1,3654.3,35.0]
[1736164387132,0.0485999,3655.1,3654.3,37.71757592]
[1736164387343,0.625,3654.9,3654.3,37.71757592]
[1736164387877,0.04857829,3654.8,3654.3,37.71757592]
[1736164388071,0.04857829,3654.8,3654.3,40.45405592]
[1736164388393,0.625,3654.9,3654.6,2.73625]
[1736164388673,0.04846919,3654.8,3654.7,0.802]
[1736164388828,0.625,3654.9,3654.7,35.802]
[1736164389894,0.625,3654.9,3654.7,38.53813]
[1736164390035,0.625,3654.9,3654.7,37.73613]
[1736164390375,0.625,3654.9,3654.7,35.0]
[1736164392721,0.04857273,3654.8,3654.7,35.0]
[1736164393248,0.04857273,3654.8,3654.3,0.8048]
[1736164393746,0.04857273,3654.8,3654.4,35.0]
[1736164406358,1.19558108,3654.8,3654.4,35.0]
[1736164407749,1.31158108,3654.8,3654.4,35.0]
[1736164407985,4.64283211,3654.8,3654.4,35.0]
[1736164408180,4.64283211,3654.8,3653.8,4.63909515]
[1736164408535,5.37288507,3654.7,3653.8,1.90227515]
[1736164408876,3.93017504,3654.6,3653.9,35.0]
[1736164409034,2.73636,3654.5,3653.9,35.0]
[1736164409241,0.04673473,3654.4,3653.9,35.0]
[1736164410142,1.14700835,3654.6,3653.9,35.0]
[1736164410472,1.14700835,3654.3,3653.9,35.0]
[1736164411054,0.04665153,3654.2,3653.9,35.0]
[1736164413953,0.04653882,3654.3,3653.9,37.73679]
[1736164415577,0.04653882,3654.3,3653.9,40.45436592]
[1736164417377,1.14700835,3654.5,3653.9,40.45436592]
[1736164417581,0.04644739,3654.2,3653.9,37.73679]
[1736164417779,1.14700835,3654.5,3653.9,37.73679]
[1736164418104,0.04641505,3654.1,3653.9,37.73679]
[1736164418251,1.14700835,3654.5,3653.9,37.73679]
[1736164418451,0.04636405,3654.0,3653.9,37.73679]
[1736164418646,1.14700835,3654.5,3653.9,40.45436592]
[1736164418885,0.046568,3654.4,3654.0,0.8054]
[1736164419096,0.046568,3654.4,3654.0,0.8327637]
[1736164419254,1.14700835,3654.5,3654.2,2.73657]
[1736164419753,0.0465789,3654.4,3654.2,2.73657]
[1736164419953,0.0465789,3654.4,3654.3,35.0]
[1736164420154,1.14700835,3654.5,3654.3,35.0]
[1736164420377,0.0465789,3654.4,3654.3,35.0]
[1736164420582,1.14700835,3654.5,3654.3,35.0]
[1736164420781,0.116,3654.6,3654.3,35.0]
[1736164420782,0.0465789,3654.4,3654.3,35.0]
[1736164420979,0.116,3654.6,3654.3,35.0]
[1736164421304,0.0465789,3654.4,3654.3,35.0]
[1736164421596,0.04641403,3654.4,3654.3,35.0]
[1736164421800,0.116,3654.6,3654.3,35.0]
[1736164421961,0.04641403,3654.4,3654.3,35.0]
[1736164422162,0.116,3654.6,3654.3,35.0]
[1736164422391,0.04646501,3654.5,3654.3,35.0]
[1736164423297,0.04646501,3654.5,3654.3,37.71757592]
[1736164424196,0.116,3654.6,3654.3,37.71757592]
[1736164424393,0.04642592,3654.4,3654.3,37.71757592]
[1736164424596,0.116,3654.6,3654.3,37.71757592]
[1736164424793,0.04636962,3654.4,3654.3,37.71757592]
[1736164424998,0.116,3654.6,3654.3,37.71757592]
[1736164425385,0.0464206,3654.5,3654.3,2.71757592]
[1736164425561,0.0464206,3654.5,3654.1,2.73658]
[1736164425960,0.0464206,3654.5,3654.2,35.7583]
[1736164429208,0.116,3654.6,3654.2,35.7583]
[1736164431091,1.26300835,3654.8,3654.2,38.49487]
[1736164431406,0.04647793,3654.7,3654.2,38.49487]
[1736164431704,0.04647793,3654.7,3654.2,41.21244592]
[1736164432316,0.04647793,3654.7,3654.2,38.49487]
[1736164432502,0.04647793,3654.7,3654.2,35.0]
[1736164433876,1.19348628,3654.7,3654.2,35.0]
[1736164434073,1.19348628,3654.7,3654.1,2.73663]
[1736164434610,1.19348628,3654.7,3654.3,0.8058]
[1736164435401,1.19348628,3654.7,3654.4,35.0]
[1736164436217,0.04647793,3654.7,3654.4,35.0]
[1736164436374,1.14700835,3654.8,3654.4,35.0]
[1736164436574,0.04671073,3654.7,3654.4,35.0]
[1736164436774,1.14700835,3654.8,3654.4,35.0]
[1736164437117,0.04669133,3654.7,3654.4,35.0]
[1736164437605,0.04660158,3654.6,3654.4,35.0]
[1736164437811,1.14700835,3654.8,3654.4,35.0]
[1736164438108,0.04667196,3654.7,3654.4,35.0]
[1736164438494,1.14700835,3654.8,3654.4,35.0]
[1736164438817,1.14700835,3654.7,3654.4,35.0]
[1736164439125,0.04646508,3654.6,3654.4,35.0]
[1736164439488,1.14700835,3654.7,3654.4,35.0]
[1736164439899,0.04646508,3654.6,3654.4,35.0]
[1736164440275,0.116,3654.8,3654.4,35.0]
[1736164440276,1.26300835,3654.8,3654.4,35.0]
[1736164440544,0.04651606,3654.7,3654.4,35.0]
[1736164440812,0.04651606,3654.7,3654.4,40.45398592]
[1736164441119,1.26300835,3654.8,3654.4,40.45398592]
[1736164441120,1.26300835,3654.8,3654.5,0.7597]
[1736164441715,0.04673907,3654.7,3654.5,3.496]
[1736164442074,1.14700835,3654.8,3654.5,3.496]
[1736164442277,0.0467374,3654.7,3654.5,3.496]
[1736164442476,1.14700835,3654.8,3654.5,5.04911887]
[1736164442777,0.04652331,3654.7,3654.5,5.04911887]
[1736164443012,1.25,3654.9,3654.5,5.04911887]
[1736164443216,0.04657428,3654.8,3654.5,5.04911887]
[1736164443621,0.04657428,3654.8,3654.5,1.55311887]
[1736164443911,0.04657428,3654.8,3654.4,35.0]
[1736164444077,0.04657428,3654.8,3654.3,3.49256]
[1736164444653,0.04657428,3654.8,3654.4,35.0]
[1736164444852,1.25,3654.9,3654.4,35.0]
[1736164445845,0.04655587,3654.8,3654.4,35.0]
[1736164446050,0.04655587,3654.8,3654.5,5.45391592]
[1736164446439,0.04655587,3654.8,3654.5,2.73634]
[1736164453154,0.04655587,3654.8,3654.5,3.92317599]
[1736164455578,0.04655587,3654.8,3654.7,4.69863599]
[1736164456878,0.625,3654.9,3654.8,2.73612]
[1736164457043,0.625,3654.9,3654.8,4.09032]
[1736164457244,0.625,3654.9,3654.8,4.8916556]
[1736164457441,0.625,3654.9,3654.8,4.91901052]
[1736164457637,1.14700835,3655.5,3655.4,3.56517]
[1736164457865,1.14700835,3655.5,3655.4,4.75200599]
[1736164458365,1.14700835,3655.7,3655.6,2.73552]
[1736164458562,1.14700835,3655.7,3655.6,3.92235599]
[1736164459126,1.1912259,3655.7,3655.6,2.73552]
[1736164459334,1.1912259,3655.7,3655.6,3.35483338]
[1736164459535,0.04421755,3655.7,3655.6,2.73552]
[1736164460152,1.14700835,3656.4,3655.6,2.73552]
[1736164460355,1.14700835,3656.4,3655.6,37.73552]
[1736164460549,1.14700835,3656.4,3655.6,35.0]
[1736164460550,3.04494047,3656.3,3655.6,35.0]
[1736164461272,0.04494047,3656.3,3655.6,35.0]
[1736164461635,1.19194882,3656.3,3655.6,35.8257]
[1736164461839,0.116,3656.2,3655.6,38.56121]
[1736164462040,0.04462738,3656.1,3655.7,2.73541]
[1736164462289,0.116,3656.2,3655.7,2.73541]
[1736164462455,0.04474035,3656.1,3655.7,2.73541]
[1736164462654,0.04474035,3656.1,3655.6,38.54327592]
[1736164462865,0.04474035,3656.1,3655.6,41.27879592]
[1736164463145,0.116,3656.2,3655.6,41.27879592]
[1736164463454,0.116,3656.2,3655.6,40.45309592]
[1736164463656,0.116,3656.2,3655.6,35.0]
[1736164465391,0.116,3656.2,3655.7,0.8303]
[1736164466516,0.116,3656.2,3655.7,3.56573]
[1736164466957,0.116,3656.2,3655.8,2.73536]
[1736164467462,0.116,3656.2,3655.7,0.8303]
[1736164469295,0.116,3656.2,3655.6,37.73551]
[1736164470457,0.116,3656.2,3655.7,2.71757592]
[1736164470660,0.116,3656.2,3655.7,5.45302592]
[1736164470858,0.116,3656.2,3655.8,0.02734982]
[1736164471259,0.116,3656.2,3655.8,2.76269982]
[1736164471455,0.116,3656.4,3655.8,2.76269982]
[1736164471962,0.116,3656.5,3655.7,2.71757592]
[1736164472369,0.04510252,3656.4,3655.8,3.83812727]
[1736164472696,0.116,3656.6,3655.9,0.8297]
[1736164473285,3.04515344,3656.5,3655.7,0.79]
[1736164473491,3.04515344,3656.5,3655.6,37.7355]
[1736164476199,2.78000344,3656.5,3655.6,37.7355]
[1736164478004,0.33475378,3656.5,3655.6,35.0]
[1736164478223,2.73522,3656.1,3655.6,35.0]
[1736164478622,0.04511436,3656.0,3655.6,35.0]
[1736164482226,2.73501,3656.3,3655.6,35.0]
[1736164482533,3.116,3656.6,3655.6,35.0]
[1736164482828,0.04517877,3656.2,3655.6,35.0]
[1736164483036,2.7351,3656.2,3655.6,35.0]
[1736164483237,0.31863785,3656.1,3655.6,35.0]
[1736164484441,0.31863785,3656.1,3655.3,2.73575]
[1736164484645,0.31863785,3656.1,3654.4,1.14117515]
[1736164484646,3.0,3656.0,3654.4,1.14117515]
[1736164484802,3.0,3655.7,3654.5,0.7561]
[1736164484998,2.73574,3655.4,3654.6,35.0]
[1736164485230,0.116,3655.3,3654.6,35.0]
[1736164485433,0.16069285,3655.3,3654.6,35.0]
[1736164485853,0.16069285,3655.3,3654.7,0.8137]
[1736164486054,0.116,3655.3,3654.8,2.71757592]
[1736164486359,1.14700835,3655.8,3655.1,2.7359]
[1736164486531,1.14700835,3655.8,3655.0,0.8137]
[1736164486532,1.26300835,3655.8,3655.2,2.62811378]
[1736164486733,1.14700835,3655.8,3655.5,0.8137]
[1736164486944,1.14700835,3655.8,3655.6,35.0]
[1736164488360,0.116,3656.0,3655.6,35.0]
[1736164489368,0.0444588,3655.9,3655.6,35.0]
[1736164493473,0.0444588,3655.9,3655.2,3.5142]
[1736164494077,0.0444588,3655.9,3655.3,35.0]
[1736164501328,0.0444588,3655.9,3655.4,2.73565]
[1736164501913,0.0444588,3655.9,3655.5,35.0]
[1736164506335,1.18640706,3655.7,3655.5,35.0]
[1736164506535,0.04314499,3655.6,3655.5,35.0]
[1736164506718,1.18640706,3655.9,3655.5,35.0]
[1736164507034,0.04324687,3655.8,3655.5,35.0]
[1736164508659,1.18640706,3655.7,3655.5,35.0]
[1736164509056,0.04152049,3655.6,3655.5,35.0]
[1736164509333,1.18640706,3655.7,3655.5,35.0]
[1736164509637,2.77712559,3655.6,3654.8,0.7511]
[1736164509838,1.22801265,3655.6,3654.8,0.77845827]
[1736164510049,1.22801265,3655.6,3654.9,35.0]
[1736164511363,2.35073946,3655.6,3654.9,35.0]
[1736164511675,3.49826181,3655.6,3654.9,35.0]
[1736164512269,1.18640706,3655.4,3654.9,35.0]
[1736164512638,0.04123127,3655.3,3654.9,35.0]
[1736164513567,1.18640706,3655.2,3654.9,35.0]
[1736164513760,1.22762966,3655.2,3654.9,35.0]
[1736164514084,0.0412226,3655.2,3654.9,35.0]
[1736164514484,1.14752235,3655.3,3654.9,35.0]
[1736164514658,0.04086305,3655.1,3654.9,35.0]
[1736164514981,0.04081209,3655.0,3654.9,35.0]
[1736164515361,1.14752235,3655.3,3654.9,35.0]
[1736164515771,0.04091401,3655.2,3654.9,35.0]
[1736164516186,2.33392941,3655.4,3654.9,35.0]
[1736164516396,0.04086305,3655.1,3654.9,35.0]
[1736164516600,2.33392941,3655.4,3654.9,35.0]
[1736164516757,0.04081209,3655.0,3654.9,35.0]
[1736164517088,3.35460995,3655.4,3654.9,35.0]
[1736164517568,0.04096496,3655.3,3654.9,35.0]
[1736164518170,1.18640706,3655.2,3654.9,35.0]
[1736164518715,0.04086305,3655.1,3654.9,35.0]
[1736164518999,0.04086305,3655.1,3654.9,37.71757592]
[1736164519206,1.14752235,3655.3,3654.9,37.71757592]
[1736164519637,0.04125619,3655.2,3654.9,37.71757592]
[1736164519961,1.14752235,3655.4,3654.9,35.0]
[1736164520161,0.04130713,3655.3,3654.9,35.0]
[1736164520733,1.22771419,3655.3,3654.9,35.0]
[1736164522899,0.04130713,3655.3,3654.9,35.0]
[1736164523115,0.04130713,3655.3,3654.9,37.71757592]
[1736164525255,0.04130713,3655.3,3654.9,35.0]
[1736164525456,2.33392941,3655.5,3654.9,35.0]
[1736164525628,0.04101788,3655.2,3654.9,35.0]
[1736164525833,2.33392941,3655.5,3654.9,35.0]
[1736164526019,0.04096693,3655.1,3654.9,35.0]
[1736164526216,0.04096693,3655.1,3654.9,37.71757592]
[1736164526859,1.14752235,3655.4,3654.9,37.71757592]
[1736164527261,0.04100205,3655.3,3654.9,37.71757592]
[1736164528052,1.22740911,3655.3,3654.9,35.0]
[1736164530072,1.18640706,3655.1,3654.9,35.0]
[1736164530429,0.04091961,3655.0,3654.5,0.808]
[1736164530951,0.04091961,3655.0,3654.6,35.0]
[1736164532269,1.18640706,3654.7,3654.6,35.0]
[1736164532563,1.22717379,3654.7,3654.6,35.0]
[1736164532750,1.18640706,3654.9,3654.6,35.0]
[1736164532951,0.04081769,3654.8,3654.6,35.0]
[1736164534623,1.18640706,3654.7,3654.6,35.0]
[1736164535129,3.96346304,3654.7,3654.6,35.0]
[1736164535330,3.96346304,3654.7,3653.9,0.7654]
[1736164535564,1.18640706,3654.5,3653.9,0.7654]
[1736164535759,0.04002794,3654.4,3654.0,35.0]
[1736164535968,1.18640706,3654.5,3654.0,35.0]
[1736164536167,0.03998283,3654.4,3654.0,35.0]
[1736164536331,1.18640706,3654.5,3654.0,35.0]
[1736164536770,0.04002526,3654.4,3654.0,35.0]
[1736164536963,1.18640706,3654.3,3654.0,35.0]
[1736164537153,6.51521097,3654.7,3654.0,35.0]
[1736164537341,0.04008654,3654.6,3654.0,35.0]
[1736164538939,3.88357235,3654.9,3654.0,35.0]
[1736164539144,0.04026475,3654.8,3654.0,35.0]
[1736164540065,0.04026475,3654.8,3654.0,37.71757592]
[1736164544179,0.04026475,3654.8,3654.2,2.73656]
[1736164544342,1.14752235,3655.0,3654.4,3.48915]
[1736164544540,0.04035101,3654.9,3654.5,2.73631]
[1736164544793,0.04035101,3654.9,3654.6,35.0]
[1736164546286,5.73597,3655.0,3654.6,35.0]
[1736164546470,0.04036932,3654.8,3654.6,35.0]
[1736164546776,0.04031835,3654.7,3654.6,35.0]
[1736164546966,4.14752235,3655.0,3654.6,35.0]
[1736164547166,0.04042028,3654.9,3654.6,35.0]
[1736164549478,0.04042028,3654.9,3654.1,3.49259]
[1736164549704,0.04042028,3654.9,3654.2,0.349259]
[1736164549977,0.04042028,3654.9,3654.3,35.0]
[1736164554084,1.18794263,3654.9,3654.3,35.0]
[1736164556585,1.18794263,3654.9,3654.5,0.7736]
[1736164557076,1.18794263,3654.9,3654.8,2.73612]
[1736164557305,1.18794263,3654.9,3654.8,38.88530281]
[1736164557703,1.14752235,3654.9,3654.8,38.88530281]
[1736164558816,1.14752235,3655.5,3654.8,38.88530281]
[1736164559309,0.04050773,3655.4,3654.8,38.88530281]
[1736164559709,1.18803008,3655.4,3654.8,38.88530281]
[1736164560010,1.18803008,3655.4,3654.9,2.71757592]
[1736164561670,1.18803008,3655.4,3654.9,5.45356592]
[1736164561904,1.18803008,3655.4,3655.3,2.73575]
[1736164562110,1.14752235,3655.4,3655.3,3.53725]
[1736164563507,1.14752235,3656.1,3655.3,0.8015]
[1736164563713,1.14752235,3656.1,3656.0,3.54092]
[1736164564280,1.14752235,3656.1,3656.0,38.54092]
[1736164565220,1.14752235,3656.8,3656.7,2.7347]
[1736164565515,1.14752235,3656.8,3656.7,3.5127]
[1736164565888,1.14752235,3656.8,3656.7,38.5127]
[1736164566213,1.14752235,3656.8,3656.7,39.68145301]
[1736164567203,3.44647371,3657.6,3656.7,39.68145301]
[1736164567204,2.73381,3657.9,3656.7,39.68145301]
[1736164567408,2.73381,3657.9,3656.7,36.94675301]
[1736164567609,2.73381,3657.9,3656.8,2.73462]
[1736164567610,0.04202788,3657.8,3656.8,2.73462]
[1736164568922,0.04202788,3657.8,3656.9,2.73455]
[1736164569134,0.04202788,3657.8,3657.0,0.39228281]
[1736164569286,0.04202788,3657.8,3657.0,0.41962363]
[1736164569623,0.04202788,3657.8,3657.0,0.39228281]
[1736164575019,2.73404,3657.6,3657.0,0.39228281]
[1736164575187,2.73404,3657.6,3656.7,0.778]
[1736164575393,0.04335146,3657.5,3656.8,35.0]
[1736164575690,2.77746146,3657.5,3656.8,35.0]
[1736164575890,2.73435,3657.2,3656.8,35.0]
[1736164576127,2.73433,3657.2,3656.3,0.776]
[1736164576293,0.04352778,3657.1,3656.3,1.127114]
[1736164576494,2.7780264,3657.1,3656.4,35.0]
[1736164576724,0.0435464,3657.1,3656.4,35.0]
[1736164576915,2.73448,3657.0,3656.4,35.0]
[1736164577112,3.0,3657.5,3656.4,35.0]
[1736164577330,2.73432,3657.3,3656.5,2.71757592]
[1736164577501,2.73437,3657.2,3656.5,2.71757592]
[1736164577706,2.73437,3657.2,3656.3,1.127114]
[1736164577919,2.73437,3657.2,3656.4,35.0]
[1736164578438,3.0,3657.5,3656.4,35.0]
[1736164578643,2.7344,3657.1,3656.4,35.0]
[1736164578848,2.73509,3656.2,3655.4,0.34310705]
[1736164579132,2.62957049,3656.6,3655.4,0.34310705]
[1736164579133,5.36438049,3656.6,3655.4,0.34310705]
[1736164579426,2.73511,3656.2,3655.5,35.0]
[1736164580006,0.04054616,3656.1,3655.5,35.0]
[1736164580210,2.73511,3656.2,3655.5,35.0]
[1736164580411,2.62957049,3656.3,3655.5,35.0]
[1736164580597,2.73528,3656.0,3655.5,35.0]
[1736164580800,0.0397923,3655.9,3655.5,35.0]
[1736164581529,2.7347,3656.7,3655.5,35.0]
[1736164581723,3.0,3656.3,3655.5,35.0]
[1736164582234,0.04012585,3656.2,3655.5,35.0]
[1736164582541,0.04012585,3656.2,3655.6,2.74492814]
[1736164582907,2.73485,3656.5,3655.6,2.74492814]
[1736164583236,0.03974455,3656.4,3655.7,0.7632]
[1736164584534,0.03974455,3656.4,3655.8,35.0]
[1736164586307,2.73485,3656.5,3655.8,35.0]
[1736164586809,2.62957049,3656.9,3655.8,37.71757592]
[1736164587009,3.0,3656.6,3655.8,37.71757592]
[1736164587205,0.0405159,3656.5,3655.8,37.71757592]
[1736164589142,5.73465,3656.8,3655.8,37.71757592]
[1736164589341,0.04038738,3656.4,3655.8,37.71757592]
[1736164589647,0.04031707,3656.3,3655.9,1.90414287]
[1736164590048,5.73465,3656.8,3655.7,3.49863]
[1736164590209,5.73465,3656.8,3655.8,35.0]
[1736164590611,2.73475,3656.7,3655.8,35.0]
[1736164590979,3.04075039,3656.6,3655.8,35.0]
[1736164591815,2.77556039,3656.6,3655.8,35.0]
[1736164592015,2.77556039,3656.6,3655.8,37.71757592]
[1736164592243,2.73481,3656.6,3655.8,37.71757592]
[1736164592629,0.04067525,3656.5,3655.8,37.71757592]
[1736164600227,2.77552525,3656.5,3655.8,37.71757592]
[1736164605572,2.62957049,3656.2,3655.8,35.0]
[1736164605776,2.73519,3656.1,3655.8,35.0]
[1736164606141,2.77506951,3656.0,3655.8,35.0]
[1736164606841,2.62957049,3655.9,3655.2,0.7862]
[1736164607080,2.73538,3655.8,3655.2,0.7862]
[1736164607295,2.73545,3655.7,3655.2,0.7862]
[1736164607578,2.73545,3655.7,3655.3,35.0]
[1736164610896,2.62957049,3655.9,3655.3,35.0]
[1736164611112,5.36490049,3655.9,3655.3,35.0]
[1736164611311,0.03940244,3655.8,3655.3,35.0]
[1736164612429,0.03940244,3655.8,3655.3,37.71757592]
[1736164612726,3.88254235,3656.3,3655.4,0.7874]
[1736164612867,0.0392276,3655.7,3655.4,3.52303]
[1736164613191,1.14752235,3656.3,3655.5,3.35965059]
[1736164613565,0.03930927,3656.2,3655.6,35.8071]
[1736164614082,2.77440927,3656.2,3655.6,35.8071]
[1736164614288,5.36467049,3656.2,3655.6,35.8071]
[1736164614488,0.03925832,3656.1,3655.6,35.8071]
[1736164617921,0.03925832,3656.1,3655.6,0.8071]
[1736164618441,0.03925832,3656.1,3654.9,3.0]
[1736164618442,1.14752235,3656.4,3656.2,2.73505]
[1736164618722,1.14752235,3656.4,3656.3,0.8199]
[1736164618923,1.14752235,3656.4,3656.3,3.5549]
[1736164619124,1.18233196,3656.4,3656.3,38.5638]
[1736164619282,1.18233196,3656.4,3656.3,41.28137592]
[1736164619488,1.14752235,3656.4,3656.3,38.54637592]
[1736164621332,2.73445,3657.1,3656.3,35.8288]
[1736164621790,0.03474928,3657.0,3656.3,35.8288]
[1736164624422,2.76922928,3657.0,3656.3,35.8288]
[1736164624632,2.73458,3656.9,3656.3,35.8288]
[1736164624826,0.03464742,3656.8,3656.3,0.8288]
[1736164626209,0.03464742,3656.8,3656.4,35.0]
[1736164629629,1.14752235,3657.0,3656.5,0.7963]
[1736164629630,0.03459649,3656.7,3656.5,0.7963]
[1736164629832,1.14752235,3657.0,3656.5,0.7963]
[1736164630037,0.03483256,3656.9,3656.5,0.7963]
[1736164630240,0.03483256,3656.9,3656.6,35.0]
[1736164630535,1.14752235,3657.2,3656.6,35.0]
[1736164630733,1.14752235,3657.2,3656.7,0.8181]
[1736164631040,0.03493441,3657.1,3656.7,0.8181]
[1736164631692,4.14752235,3657.4,3656.7,0.8181]
[1736164631897,1.14752235,3657.4,3656.7,0.8181]
[1736164632138,0.0352147,3657.3,3656.7,2.14862987]
[1736164632569,0.0352147,3657.3,3657.2,6.18110049]
[1736164632891,0.34943705,3657.5,3657.4,4.10138]
[1736164633030,0.34943705,3657.5,3657.4,39.10138]
[1736164633230,0.34943705,3657.5,3657.4,38.55138]
[1736164634472,0.005,3658.4,3657.5,2.73408]
[1736164634831,0.005,3658.4,3657.5,2.65408]
[1736164635033,0.005,3658.4,3657.6,2.71757592]
[1736164636193,0.02615962,3658.3,3657.6,2.71757592]
[1736164637089,0.005,3658.4,3657.6,2.71757592]
[1736164637590,2.73844,3658.4,3657.6,2.71757592]
[1736164637869,0.02626207,3658.3,3657.4,0.8172]
[1736164638068,2.73381,3657.9,3657.4,0.8172]
[1736164638369,2.7339,3657.8,3657.4,0.8172]
[1736164638544,2.7606275,3657.8,3657.4,0.8172]
[1736164638944,1.06689025,3657.8,3656.7,0.7538]
[1736164639472,2.73418,3657.4,3656.8,35.0]
[1736164639886,0.02647306,3657.3,3656.8,35.0]
[1736164641049,2.62957049,3657.4,3656.8,35.0]
[1736164641247,2.62957049,3657.4,3656.2,0.8136]
[1736164641248,0.02602573,3657.3,3656.2,0.8136]
[1736164641570,2.73436,3657.2,3656.3,0.354871]
[1736164641742,2.73443,3657.1,3656.3,0.354871]
[1736164641944,2.73448,3657.0,3656.2,0.8136]